[Event "29th Czech Open-Rapid 2018"]
[Site "Pardubice"]
[Date "2018.07.19"]
[Round "4"]
[White "Tarakanov, Oleg"]
[Black "Matviishen, Viktor"]
[Result "0-1"]
[ECO "C44"]
[WhiteElo "2128"]
[BlackElo "2425"]
[Annotator "NA RC"]
[PlyCount "54"]
[EventDate "2018.07.18"]
[EventType "swiss"]
[EventCountry "CZE"]
[SourceTitle "playchess.com"]
[Source "ChessBase"]
[SourceQuality "1"]
[TimeControl "900+10"]

1. e4 {[%emt 0:00:00]} e5 {[%emt 0:03:19]} 2. Nf3 {[%emt 0:00:00]} Nc6 {[%emt 0:00:03]} 3. d4 {[%emt 0:00:05]} exd4 {[%emt 0:00:02]} 4. c3 {[%emt 0:00:00]} d5 {[%emt 0:00:42]} 5. exd5 {[%emt 0:00:28]} Qxd5 {[%emt 0:00:02]} 6. cxd4 {[%emt 0:00:02]} Bg4 {[%emt 0:00:16]} 7. Be2 {[%emt 0:00:04]} O-O-O {[%emt 0:00:06]} 8. Nc3 {[%emt 0:00:40]} Qa5 {[%emt 0:01:50]} 9. Be3 {[%emt 0:00:43]} Nf6 {[%emt 0:00:38]} 10. O-O {[%emt 0:00:19]} Bb4 {[%emt 0:02:25]} 11. Qb3 {[%emt 0:01:59]} Be6 {[%emt 0:00:16]} 12. Qc2 {[%emt 0:00:29]} Rhe8 {[%emt 0:00:31]} 13. a3 {[%emt 0:00:32]} Bxc3 {[%emt 0:00:02]} 14. bxc3 {[%emt 0:00:11]} Bf5 {[%emt 0:00:59]} 15. Bd3 {[%emt 0:01:10]} Bxd3 {[%emt 0:00:05]} 16. Qxd3 {[%emt 0:00:01]} Ne4 {[%emt 0:01:15]} 17. Rfc1 {[%emt 0:00:51]} g5 {[%emt 0:01:10]} 18. Rab1 {[%emt 0:04:11]} g4 {[%emt 0:00:04]} 19. Nh4 {[%emt 0:01:02]} Qxa3 {[%emt 0:02:00]} 20. Rxb7 {[%emt 0:00:03]} Kxb7 {[%emt 0:00:16]} 21. Qb5+ {[%emt 0:00:01]} Kc8 {[%emt 0:00:02]} 22. Qxc6 {[%emt 0:00:01]} Re6 {[%emt 0:00:26]} 23. Qa8+ {[%emt 0:00:38]} Kd7 {[%emt 0:00:01]} 24. Qd5+ {[%emt 0:00:08]} Ke8 {[%emt 0:01:16]} 25. Qb5+ {[%emt 0:00:18]} c6 {[%emt 0:00:01]} 26. Qh5 {[%emt 0:00:48]} Nf6 {[%emt 0:00:09]} 27. Qg5 {[%emt 0:00:33]} Qxc1+ {[%emt 0:00:03]} 0-1

[Event "29th Czech Open-Rapid 2018"]
[Site "Pardubice"]
[Date "2018.07.19"]
[Round "4"]
[White "Vinklarek, Ondrej"]
[Black "Skoloud, Barnabas"]
[Result "1-0"]
[ECO "A04"]
[WhiteElo "2122"]
[BlackElo "1637"]
[Annotator "NA"]
[PlyCount "75"]
[EventDate "2018.07.18"]
[EventType "swiss"]
[EventCountry "CZE"]
[SourceTitle "playchess.com"]
[Source "ChessBase"]
[SourceQuality "1"]
[TimeControl "900+10"]

1. Nf3 {[%emt 0:01:16]} f5 {[%emt 0:00:03]} 2. d3 {[%emt 0:00:02]} d5 {[%emt 0:00:15]} 3. Nbd2 {[%emt 0:01:21]} Nf6 {[%emt 0:00:03]} 4. Ne5 {[%emt 0:01:18]} e6 {[%emt 0:00:20]} 5. f4 {[%emt 0:00:26]} d4 {[%emt 0:00:32]} 6. Ndf3 {[%emt 0:00:40]} Bb4+ {[%emt 0:00:46]} 7. Bd2 {[%emt 0:01:34]} Bxd2+ {[%emt 0:00:38]} 8. Qxd2 {[%emt 0:00:01]} c5 {[%emt 0:01:08]} 9. e3 {[%emt 0:01:58]} Nc6 {[%emt 0:00:15]} 10. Nxc6 {[%emt 0:00:42]} bxc6 {[%emt 0:00:01]} 11. exd4 {[%emt 0:01:09]} cxd4 {[%emt 0:00:17]} 12. Qb4 {[%emt 0:00:03]} Nd5 {[%emt 0:00:39]} 13. Qxd4 {[%emt 0:00:24]} O-O {[%emt 0:00:02]} 14. g3 {[%emt 0:01:04]} Rb8 {[%emt 0:00:45]} 15. Bg2 {[%emt 0:03:27]} Qa5+ {[%emt 0:00:01]} 16. Nd2 {[%emt 0:00:38]} c5 {[%emt 0:00:01]} 17. Qe5 {[%emt 0:00:12]} Nb4 {[%emt 0:00:20]} 18. Qc3 {[%emt 0:00:26]} Qa4 {[%emt 0:01:26]} 19. b3 {[%emt 0:00:11]} Qa5 {[%emt 0:00:49]} 20. a3 {[%emt 0:00:27]} Nxd3+ {[%emt 0:00:42]} 21. Qxd3 {[%emt 0:00:09]} Ba6 {[%emt 0:00:02]} 22. Qe3 {[%emt 0:00:26]} Rbd8 {[%emt 0:00:35]} 23. Rd1 {[%emt 0:00:04]} Rd6 {[%emt 0:00:41]} 24. Kf2 {[%emt 0:00:20]} Rfd8 {[%emt 0:00:03]} 25. Nc4 {[%emt 0:00:05]} Bxc4 {[%emt 0:00:06]} 26. Rxd6 {[%emt 0:00:05]} Rxd6 {[%emt 0:00:02]} 27. bxc4 {[%emt 0:00:19]} Rd2+ {[%emt 0:00:34]} 28. Kf3 {[%emt 0:00:05]} Qd8 {[%emt 0:00:02]} 29. Qxe6+ {[%emt 0:00:07]} Kh8 {[%emt 0:00:02]} 30. Qxf5 {[%emt 0:00:41]} h6 {[%emt 0:00:25]} 31. Re1 {[%emt 0:00:03]} Rd4 {[%emt 0:00:53]} 32. Re2 {[%emt 0:00:13]} Rxc4 {[%emt 0:00:12]} 33. Qe6 {[%emt 0:00:07]} Rc3+ {[%emt 0:00:10]} 34. Kg4 {[%emt 0:00:11]} Qd1 {[%emt 0:00:39]} 35. Qe8+ {[%emt 0:00:15]} Kh7 {[%emt 0:00:01]} 36. Bf3 {[%emt 0:00:14]} h5+ {[%emt 0:00:01]} 37. Qxh5+ {[%emt 0:00:06]} Kg8 {[%emt 0:00:02]} 38. Re8# {[%emt 0:00:01]} 1-0

[Event "29th Czech Open-Rapid 2018"]
[Site "Pardubice"]
[Date "2018.07.19"]
[Round "4"]
[White "Kyrychenko, Maryan"]
[Black "Westerinen, Heikki MJ"]
[Result "0-1"]
[ECO "B02"]
[WhiteElo "2120"]
[BlackElo "2312"]
[Annotator "NA"]
[PlyCount "72"]
[EventDate "2018.07.18"]
[EventType "swiss"]
[EventCountry "CZE"]
[SourceTitle "playchess.com"]
[Source "ChessBase"]
[SourceQuality "1"]
[TimeControl "900+10"]

1. e4 {[%emt 0:02:49]} Nf6 {[%emt 0:00:00]} 2. e5 {[%emt 0:00:02]} Nd5 {[%emt 0:00:00]} 3. c4 {[%emt 0:00:03]} Nb6 {[%emt 0:00:02]} 4. a4 {[%emt 0:00:02]} a5 {[%emt 0:00:25]} 5. d4 {[%emt 0:00:02]} d6 {[%emt 0:00:02]} 6. exd6 {[%emt 0:00:01]} exd6 {[%emt 0:00:05]} 7. Nf3 {[%emt 0:00:03]} Nc6 {[%emt 0:00:05]} 8. Bd3 {[%emt 0:00:41]} Be7 {[%emt 0:00:23]} 9. O-O {[%emt 0:00:03]} O-O {[%emt 0:00:17]} 10. Nc3 {[%emt 0:00:01]} Bg4 {[%emt 0:00:40]} 11. Be3 {[%emt 0:00:24]} Bf6 {[%emt 0:00:22]} 12. Nb5 {[%emt 0:02:18]} Nb4 {[%emt 0:00:25]} 13. Be2 {[%emt 0:00:29]} c6 {[%emt 0:00:29]} 14. Na3 {[%emt 0:00:03]} Re8 {[%emt 0:00:15]} 15. h3 {[%emt 0:00:13]} Bf5 {[%emt 0:00:45]} 16. Qd2 {[%emt 0:00:06]} h6 {[%emt 0:00:08]} 17. b3 {[%emt 0:00:09]} d5 {[%emt 0:00:20]} 18. Rad1 {[%emt 0:01:34]} dxc4 {[%emt 0:00:18]} 19. Nxc4 {[%emt 0:00:03]} N6d5 {[%emt 0:00:07]} 20. Nfe5 {[%emt 0:00:38]} Bc2 {[%emt 0:00:15]} 21. Rc1 {[%emt 0:00:30]} Bxb3 {[%emt 0:00:08]} 22. Bd1 {[%emt 0:00:14]} Bxc4 {[%emt 0:01:15]} 23. Nxc4 {[%emt 0:00:10]} b5 {[%emt 0:00:33]} 24. Na3 {[%emt 0:00:08]} Nxe3 {[%emt 0:00:08]} 25. fxe3 {[%emt 0:00:06]} Rxe3 {[%emt 0:00:12]} 26. Rxf6 {[%emt 0:00:30]} Rxa3 {[%emt 0:00:03]} 27. Rf4 {[%emt 0:00:39]} Rd3 {[%emt 0:00:12]} 28. Qf2 {[%emt 0:00:11]} Qg5 {[%emt 0:00:57]} 29. Be2 {[%emt 0:01:12]} Rd2 {[%emt 0:00:24]} 30. h4 {[%emt 0:01:04]} Qe7 {[%emt 0:00:05]} 31. Re1 {[%emt 0:00:22]} Re8 {[%emt 0:00:06]} 32. Rxf7 {[%emt 0:00:27]} Qxf7 {[%emt 0:00:47]} 33. Qxf7+ {[%emt 0:00:01]} Kxf7 {[%emt 0:00:03]} 34. Bh5+ {[%emt 0:00:01]} g6 {[%emt 0:00:06]} 35. Bxg6+ {[%emt 0:00:02]} Kxg6 {[%emt 0:00:01]} 36. Rxe8 {[%emt 0:00:02]} bxa4 {[%emt 0:00:11]} 0-1

[Event "29th Czech Open-Rapid 2018"]
[Site "Pardubice"]
[Date "2018.07.19"]
[Round "4"]
[White "Mitra, Roman"]
[Black "Nun, Jiri"]
[Result "0-1"]
[ECO "B10"]
[WhiteElo "2118"]
[BlackElo "2337"]
[Annotator "NA"]
[PlyCount "88"]
[EventDate "2018.07.18"]
[EventType "swiss"]
[EventCountry "CZE"]
[SourceTitle "playchess.com"]
[Source "ChessBase"]
[SourceQuality "1"]
[TimeControl "900+10"]

1. e4 {[%emt 0:01:08]} c6 {[%emt 0:00:00]} 2. d3 {[%emt 0:00:03]} g6 {[%emt 0:00:05]} 3. g3 {[%emt 0:00:03]} Bg7 {[%emt 0:00:03]} 4. Bg2 {[%emt 0:00:02]} d5 {[%emt 0:00:15]} 5. Nd2 {[%emt 0:00:21]} Nf6 {[%emt 0:00:25]} 6. Ne2 {[%emt 0:00:41]} O-O {[%emt 0:02:10]} 7. O-O {[%emt 0:00:07]} e5 {[%emt 0:00:02]} 8. b3 {[%emt 0:01:40]} a5 {[%emt 0:00:20]} 9. a4 {[%emt 0:00:02]} Na6 {[%emt 0:00:07]} 10. Bb2 {[%emt 0:00:15]} Re8 {[%emt 0:00:06]} 11. Re1 {[%emt 0:01:55]} dxe4 {[%emt 0:01:54]} 12. dxe4 {[%emt 0:00:15]} b5 {[%emt 0:00:19]} 13. axb5 {[%emt 0:03:19]} cxb5 {[%emt 0:00:02]} 14. Nc3 {[%emt 0:00:02]} Bd7 {[%emt 0:02:35]} 15. Qe2 {[%emt 0:00:57]} Nb4 {[%emt 0:01:07]} 16. Nf1 {[%emt 0:00:22]} Qb6 {[%emt 0:01:10]} 17. Ne3 {[%emt 0:00:13]} Rac8 {[%emt 0:00:05]} 18. h3 {[%emt 0:01:16]} Rc5 {[%emt 0:01:35]} 19. Ncd5 {[%emt 0:01:45]} Nfxd5 {[%emt 0:00:28]} 20. exd5 {[%emt 0:00:03]} f5 {[%emt 0:00:39]} 21. c3 {[%emt 0:00:54]} Na6 {[%emt 0:00:03]} 22. Qd2 {[%emt 0:00:41]} Rcc8 {[%emt 0:00:11]} 23. c4 {[%emt 0:00:07]} b4 {[%emt 0:00:03]} 24. Qd1 {[%emt 0:01:11]} Nc5 {[%emt 0:00:09]} 25. Kh2 {[%emt 0:00:07]} e4 {[%emt 0:00:22]} 26. Bxg7 {[%emt 0:00:02]} Kxg7 {[%emt 0:00:01]} 27. Bf1 {[%emt 0:00:02]} Ra8 {[%emt 0:00:09]} 28. Qd4+ {[%emt 0:00:06]} Kg8 {[%emt 0:00:19]} 29. Ng2 {[%emt 0:00:10]} Qd6 {[%emt 0:00:08]} 30. Re3 {[%emt 0:01:28]} Qe5 {[%emt 0:01:20]} 31. Qd1 {[%emt 0:00:17]} a4 {[%emt 0:00:25]} 32. bxa4 {[%emt 0:00:22]} Nxa4 {[%emt 0:00:14]} 33. f4 {[%emt 0:00:12]} Qf6 {[%emt 0:00:26]} 34. Rb3 {[%emt 0:00:03]} Reb8 {[%emt 0:00:47]} 35. Qc1 {[%emt 0:00:12]} Qd6 {[%emt 0:00:38]} 36. Ne3 {[%emt 0:00:10]} Qc5 {[%emt 0:00:02]} 37. Qb1 {[%emt 0:00:10]} Nc3 {[%emt 0:00:16]} 38. Rxa8 {[%emt 0:00:03]} Rxa8 {[%emt 0:00:03]} 39. Qc1 {[%emt 0:00:03]} Ra2+ {[%emt 0:00:07]} 40. Kh1 {[%emt 0:00:02]} Ba4 {[%emt 0:01:17]} 41. Rxc3 {[%emt 0:00:35]} bxc3 {[%emt 0:00:03]} 42. Qxc3 {[%emt 0:00:01]} Ra3 {[%emt 0:00:09]} 43. Qf6 {[%emt 0:00:05]} Rxe3 {[%emt 0:00:08]} 44. Qe6+ {[%emt 0:00:06]} Kg7 {[%emt 0:00:03]} 0-1

[Event "29th Czech Open-Rapid 2018"]
[Site "Pardubice"]
[Date "2018.07.19"]
[Round "4"]
[White "Dimitrov, Dejan"]
[Black "Bente, Bjoern"]
[Result "1/2-1/2"]
[ECO "A01"]
[WhiteElo "2102"]
[BlackElo "2228"]
[Annotator "NA"]
[PlyCount "49"]
[EventDate "2018.07.18"]
[EventType "swiss"]
[EventCountry "CZE"]
[SourceTitle "playchess.com"]
[Source "ChessBase"]
[SourceQuality "1"]
[TimeControl "900+10"]

1. b3 {[%emt 0:00:00]} e5 {[%emt 0:00:00]} 2. Bb2 {[%emt 0:00:00]} Nc6 {[%emt 0:00:00]} 3. e3 {[%emt 0:00:00]} Nf6 {[%emt 0:00:00]} 4. c4 {[%emt 0:00:07]} g6 {[%emt 0:00:23]} 5. Nf3 {[%emt 0:00:21]} d6 {[%emt 0:00:02]} 6. Be2 {[%emt 0:00:25]} Bg7 {[%emt 0:00:01]} 7. d4 {[%emt 0:00:24]} O-O {[%emt 0:00:11]} 8. O-O {[%emt 0:00:21]} exd4 {[%emt 0:01:02]} 9. Nxd4 {[%emt 0:00:12]} Nxd4 {[%emt 0:00:10]} 10. Bxd4 {[%emt 0:00:34]} Bf5 {[%emt 0:00:14]} 11. Nd2 {[%emt 0:01:24]} Re8 {[%emt 0:00:43]} 12. Rc1 {[%emt 0:01:28]} Ne4 {[%emt 0:00:35]} 13. Nxe4 {[%emt 0:00:27]} Bxe4 {[%emt 0:00:02]} 14. Bxg7 {[%emt 0:00:39]} Kxg7 {[%emt 0:00:02]} 15. Qd4+ {[%emt 0:00:02]} Qf6 {[%emt 0:00:03]} 16. Rfd1 {[%emt 0:00:13]} a5 {[%emt 0:00:54]} 17. a3 {[%emt 0:01:16]} b6 {[%emt 0:00:40]} 18. Qxf6+ {[%emt 0:00:41]} Kxf6 {[%emt 0:00:01]} 19. Bd3 {[%emt 0:00:21]} Bc6 {[%emt 0:01:02]} 20. Bc2 {[%emt 0:00:41]} Re5 {[%emt 0:00:29]} 21. Rd4 {[%emt 0:00:29]} h5 {[%emt 0:00:29]} 22. h4 {[%emt 0:01:04]} Rae8 {[%emt 0:00:12]} 23. Rcd1 {[%emt 0:00:33]} Be4 {[%emt 0:00:56]} 24. Bxe4 {[%emt 0:00:28]} Rxe4 {[%emt 0:00:03]} 25. g3 1/2-1/2

[Event "29th Czech Open-Rapid 2018"]
[Site "Pardubice"]
[Date "2018.07.19"]
[Round "4"]
[White "Gorbatenko, Alexander"]
[Black "Jun, Rudolf"]
[Result "0-1"]
[ECO "E73"]
[WhiteElo "2093"]
[BlackElo "1651"]
[Annotator "NA"]
[PlyCount "91"]
[EventDate "2018.07.18"]
[EventType "swiss"]
[EventCountry "CZE"]
[SourceTitle "playchess.com"]
[Source "ChessBase"]
[SourceQuality "1"]
[TimeControl "900+10"]

1. d4 {[%emt 0:00:00]} Nf6 {[%emt 0:00:00]} 2. c4 {[%emt 0:00:00]} d6 {[%emt 0:00:51]} 3. Nc3 {[%emt 0:00:14]} g6 {[%emt 0:00:04]} 4. e4 {[%emt 0:00:06]} Bg7 {[%emt 0:00:03]} 5. Be2 {[%emt 0:00:03]} O-O {[%emt 0:00:10]} 6. Bg5 {[%emt 0:00:11]} h6 {[%emt 0:00:25]} 7. Be3 {[%emt 0:00:03]} e5 {[%emt 0:00:34]} 8. d5 {[%emt 0:00:37]} a5 {[%emt 0:00:23]} 9. Qd2 {[%emt 0:00:43]} Kh7 {[%emt 0:00:14]} 10. h4 {[%emt 0:00:21]} Na6 {[%emt 0:01:49]} 11. h5 {[%emt 0:00:10]} g5 {[%emt 0:00:09]} 12. f3 {[%emt 0:00:24]} Nc5 {[%emt 0:01:24]} 13. g4 {[%emt 0:00:15]} Bd7 {[%emt 0:01:53]} 14. Nh3 {[%emt 0:01:59]} Kg8 {[%emt 0:01:49]} 15. Nf2 {[%emt 0:05:30]} b6 {[%emt 0:02:14]} 16. Bd1 {[%emt 0:00:33]} Nh7 {[%emt 0:02:19]} 17. Bc2 {[%emt 0:00:17]} Qf6 {[%emt 0:00:39]} 18. Qe2 {[%emt 0:00:22]} Rfb8 {[%emt 0:00:03]} 19. O-O {[%emt 0:00:34]} Qe7 {[%emt 0:00:49]} 20. Kg2 {[%emt 0:00:48]} a4 {[%emt 0:00:26]} 21. b4 {[%emt 0:00:43]} axb3 {[%emt 0:00:23]} 22. axb3 {[%emt 0:00:01]} Qe8 {[%emt 0:00:41]} 23. Qd1 {[%emt 0:01:29]} Rxa1 {[%emt 0:00:43]} 24. Qxa1 {[%emt 0:00:00]} Ra8 {[%emt 0:00:03]} 25. Qb2 {[%emt 0:00:02]} Nb7 {[%emt 0:00:44]} 26. Ra1 {[%emt 0:00:24]} Qb8 {[%emt 0:00:06]} 27. Nd3 {[%emt 0:00:22]} Nc5 {[%emt 0:00:20]} 28. b4 {[%emt 0:00:26]} Nb7 {[%emt 0:00:07]} 29. Ba4 {[%emt 0:00:26]} Bxa4 {[%emt 0:00:12]} 30. Rxa4 {[%emt 0:00:05]} Rxa4 {[%emt 0:00:02]} 31. Nxa4 {[%emt 0:00:00]} Qe8 {[%emt 0:00:03]} 32. Nc3 {[%emt 0:00:26]} Bf6 {[%emt 0:00:22]} 33. Qa3 {[%emt 0:00:44]} Bg7 {[%emt 0:00:12]} 34. Qa7 {[%emt 0:00:14]} Qc8 {[%emt 0:00:02]} 35. c5 {[%emt 0:01:03]} bxc5 {[%emt 0:00:09]} 36. bxc5 {[%emt 0:00:01]} Nxc5 {[%emt 0:00:11]} 37. Nxc5 {[%emt 0:00:05]} dxc5 {[%emt 0:00:02]} 38. Bxc5 {[%emt 0:00:21]} Nf6 {[%emt 0:00:18]} 39. Nb5 {[%emt 0:00:21]} Nxg4 {[%emt 0:00:09]} 40. Qxc7 {[%emt 0:00:22]} Qa6 {[%emt 0:00:20]} 41. fxg4 {[%emt 0:00:47]} Qxb5 {[%emt 0:00:01]} 42. Qc8+ {[%emt 0:00:15]} Kh7 {[%emt 0:00:06]} 43. d6 Qe2+ 44. Bf2 Qxe4+ 45. Kg3 Qd3+ 46. Kg2 0-1

[Event "29th Czech Open-Rapid 2018"]
[Site "Pardubice"]
[Date "2018.07.19"]
[Round "4"]
[White "Maslak, Alexander"]
[Black "Potapov, Alexander"]
[Result "0-1"]
[ECO "B32"]
[WhiteElo "2069"]
[BlackElo "2407"]
[Annotator "ChessBase"]
[PlyCount "100"]
[EventDate "2018.07.18"]
[EventType "swiss"]
[EventCountry "CZE"]
[SourceTitle "playchess.com"]
[Source "ChessBase"]
[SourceQuality "1"]
[TimeControl "900+10"]

1. e4 {[%emt 0:00:00]} c5 {[%emt 0:00:00]} 2. Nf3 {[%emt 0:00:00]} Nc6 {[%emt 0:00:00]} 3. d4 {[%emt 0:00:00]} cxd4 {[%emt 0:00:00]} 4. Nxd4 {[%emt 0:00:00]} e5 {[%emt 0:00:00]} 5. Nb5 {[%emt 0:00:00]} d6 {[%emt 0:00:03]} 6. c4 {[%emt 0:00:02]} Be7 {[%emt 0:00:11]} 7. N1c3 {[%emt 0:00:06]} a6 {[%emt 0:00:02]} 8. Na3 {[%emt 0:00:01]} Be6 {[%emt 0:00:34]} 9. Nc2 {[%emt 0:00:47]} Bg5 {[%emt 0:01:15]} 10. Ne3 {[%emt 0:01:04]} Nf6 {[%emt 0:01:02]} 11. Bd3 {[%emt 0:00:22]} O-O {[%emt 0:00:07]} 12. O-O {[%emt 0:00:02]} Rc8 {[%emt 0:00:31]} 13. Ncd5 {[%emt 0:00:37]} Nd7 {[%emt 0:00:51]} 14. g3 {[%emt 0:00:23]} Nd4 {[%emt 0:02:31]} 15. f4 {[%emt 0:02:06]} Bh6 {[%emt 0:00:07]} 16. Ng4 {[%emt 0:00:58]} Bxg4 {[%emt 0:00:19]} 17. Qxg4 {[%emt 0:00:02]} Kh8 {[%emt 0:00:21]} 18. Be3 {[%emt 0:01:14]} Nc5 {[%emt 0:00:20]} 19. Qd1 {[%emt 0:00:37]} Nde6 {[%emt 0:00:57]} 20. Bc2 {[%emt 0:01:13]} exf4 {[%emt 0:00:30]} 21. gxf4 {[%emt 0:00:28]} g6 {[%emt 0:00:33]} 22. Qd2 {[%emt 0:02:20]} Qh4 {[%emt 0:00:36]} 23. b4 {[%emt 0:02:49]} Nd7 {[%emt 0:00:13]} 24. Bb3 {[%emt 0:00:17]} f5 {[%emt 0:00:11]} 25. Nc3 {[%emt 0:00:30]} Nf6 {[%emt 0:00:37]} 26. c5 {[%emt 0:00:31]} Qg4+ {[%emt 0:01:02]} 27. Qg2 {[%emt 0:00:25]} Rfe8 {[%emt 0:00:01]} 28. Qxg4 {[%emt 0:01:37]} Nxg4 {[%emt 0:00:02]} 29. Bxe6 {[%emt 0:00:51]} Rxe6 {[%emt 0:00:03]} 30. Bd4+ {[%emt 0:00:02]} Bg7 {[%emt 0:00:38]} 31. Bxg7+ {[%emt 0:00:03]} Kxg7 {[%emt 0:00:01]} 32. exf5 {[%emt 0:00:12]} gxf5 {[%emt 0:00:01]} 33. Na4 {[%emt 0:00:10]} Rg6 {[%emt 0:00:48]} 34. Rf3 {[%emt 0:00:18]} Re8 {[%emt 0:00:12]} 35. Rg3 {[%emt 0:00:14]} dxc5 {[%emt 0:00:39]} 36. Nxc5 {[%emt 0:00:01]} Re7 {[%emt 0:00:39]} 37. Rd1 {[%emt 0:00:16]} Ne3 {[%emt 0:00:53]} 38. Rxg6+ hxg6 {[%emt 0:00:01]} 39. Rd6 {[%emt 0:00:22]} Nc4 {[%emt 0:00:09]} 40. Rd4 {[%emt 0:00:01]} Na3 {[%emt 0:00:12]} 41. Kf2 {[%emt 0:00:14]} Nc2 {[%emt 0:00:09]} 42. Rc4 {[%emt 0:00:06]} Ne3 {[%emt 0:00:02]} 43. Rd4 {[%emt 0:00:05]} Ng4+ {[%emt 0:00:05]} 44. Kg2 {[%emt 0:00:15]} Re2+ {[%emt 0:00:02]} 45. Kg3 {[%emt 0:00:04]} Rxa2 {[%emt 0:00:05]} 46. h3 {[%emt 0:00:08]} Nf6 {[%emt 0:00:10]} 47. Nxb7 {[%emt 0:00:04]} Ne4+ {[%emt 0:00:03]} 48. Kh4 {[%emt 0:00:07]} Ra3 {[%emt 0:00:05]} 49. Nd6 {[%emt 0:00:23]} Nf2 {[%emt 0:00:04]} 50. Ne8+ {[%emt 0:00:20]} Kh6 {[%emt 0:00:02]} 0-1

[Event "29th Czech Open-Rapid 2018"]
[Site "Pardubice"]
[Date "2018.07.19"]
[Round "4"]
[White "Vykydal, Frantisek"]
[Black "Gschwendtner, Stanislav"]
[Result "1-0"]
[ECO "B25"]
[WhiteElo "2045"]
[BlackElo "1940"]
[Annotator "NA"]
[PlyCount "121"]
[EventDate "2018.07.18"]
[EventType "swiss"]
[EventCountry "CZE"]
[SourceTitle "playchess.com"]
[Source "ChessBase"]
[SourceQuality "1"]
[TimeControl "900+10"]

1. e4 {[%emt 0:00:00]} c5 {[%emt 0:00:04]} 2. Nc3 {[%emt 0:00:00]} Nc6 {[%emt 0:00:24]} 3. g3 {[%emt 0:00:00]} g6 {[%emt 0:00:16]} 4. Bg2 {[%emt 0:00:00]} Bg7 {[%emt 0:00:07]} 5. d3 {[%emt 0:00:02]} d6 {[%emt 0:00:05]} 6. Nge2 {[%emt 0:00:08]} Nf6 {[%emt 0:00:03]} 7. h3 {[%emt 0:00:06]} Rb8 {[%emt 0:00:07]} 8. f4 {[%emt 0:00:24]} O-O {[%emt 0:00:15]} 9. O-O {[%emt 0:00:04]} b5 {[%emt 0:00:11]} 10. e5 {[%emt 0:00:08]} Bxh3 {[%emt 0:00:42]} 11. Bxc6 {[%emt 0:01:01]} dxe5 {[%emt 0:00:09]} 12. Bg2 {[%emt 0:04:05]} Bxg2 {[%emt 0:00:12]} 13. Kxg2 {[%emt 0:00:03]} b4 {[%emt 0:00:06]} 14. Ne4 {[%emt 0:01:09]} Qd5 {[%emt 0:00:21]} 15. fxe5 {[%emt 0:02:24]} Nxe4 {[%emt 0:00:08]} 16. Nf4 {[%emt 0:00:23]} Qc6 {[%emt 0:01:09]} 17. Qf3 {[%emt 0:00:41]} Bxe5 {[%emt 0:00:08]} 18. Qxe4 {[%emt 0:00:09]} Qxe4+ 19. dxe4 Rbd8 {[%emt 0:01:00]} 20. Nd5 {[%emt 0:00:33]} e6 {[%emt 0:00:07]} 21. Ne7+ {[%emt 0:00:05]} Kg7 {[%emt 0:00:03]} 22. Nc6 {[%emt 0:00:03]} Bd4 {[%emt 0:01:30]} 23. Nxd8 {[%emt 0:00:07]} Rxd8 {[%emt 0:00:02]} 24. Rd1 {[%emt 0:00:11]} Rc8 {[%emt 0:00:09]} 25. a3 {[%emt 0:00:23]} a5 {[%emt 0:00:21]} 26. axb4 {[%emt 0:00:03]} axb4 {[%emt 0:00:01]} 27. Ra4 {[%emt 0:00:29]} Kf6 {[%emt 0:00:09]} 28. Rf1+ {[%emt 0:00:13]} Ke5 {[%emt 0:00:42]} 29. Rxf7 {[%emt 0:01:08]} c4 {[%emt 0:03:53]} 30. Rxb4 {[%emt 0:00:43]} Kxe4 {[%emt 0:00:14]} 31. Rf4+ {[%emt 0:01:05]} Kd5 {[%emt 0:00:15]} 32. c3 {[%emt 0:00:10]} e5 {[%emt 0:00:07]} 33. Rh4 {[%emt 0:01:03]} Kc5 {[%emt 0:00:34]} 34. Rb7 {[%emt 0:00:37]} Kc6 {[%emt 0:00:36]} 35. Rbxh7 {[%emt 0:00:07]} Bc5 {[%emt 0:00:06]} 36. Rxc4 {[%emt 0:00:39]} Kd5 {[%emt 0:00:15]} 37. Rg4 {[%emt 0:00:10]} Rf8 {[%emt 0:00:04]} 38. Rxg6 {[%emt 0:00:20]} Rf2+ {[%emt 0:00:02]} 39. Kh3 {[%emt 0:00:02]} Rc2 {[%emt 0:00:21]} 40. Rd7+ {[%emt 0:00:11]} Ke4 {[%emt 0:00:03]} 41. Rg4+ {[%emt 0:00:22]} Kf3 {[%emt 0:00:20]} 42. Rf7+ {[%emt 0:00:22]} Ke2 {[%emt 0:00:04]} 43. Re4+ {[%emt 0:00:11]} Kd3 {[%emt 0:00:04]} 44. Re1 {[%emt 0:00:18]} e4 {[%emt 0:00:13]} 45. Rd7+ {[%emt 0:00:08]} Kc4 {[%emt 0:00:08]} 46. Rxe4+ {[%emt 0:00:03]} Kb3 {[%emt 0:00:04]} 47. Rb7+ {[%emt 0:00:20]} Ka2 {[%emt 0:00:04]} 48. b4 {[%emt 0:00:24]} Bg1 {[%emt 0:00:04]} 49. Re1 {[%emt 0:00:12]} Bf2 {[%emt 0:00:14]} 50. Rf1 {[%emt 0:00:10]} Kb3 {[%emt 0:00:17]} 51. Rf7 {[%emt 0:00:08]} Bb6 {[%emt 0:00:03]} 52. R7f3 {[%emt 0:00:10]} Kc4 {[%emt 0:00:11]} 53. Be3 {[%emt 0:00:10]} Bc7 {[%emt 0:00:07]} 54. Bd4 {[%emt 0:00:09]} Bd8 {[%emt 0:00:06]} 55. Rf5 {[%emt 0:00:08]} Be7 {[%emt 0:00:11]} 56. b5 {[%emt 0:00:06]} Rb2 {[%emt 0:00:05]} 57. b6 {[%emt 0:00:04]} Bd6 {[%emt 0:00:02]} 58. Rf6 {[%emt 0:00:12]} Bb8 {[%emt 0:00:07]} 59. R1f5 {[%emt 0:00:10]} Kd3 {[%emt 0:00:07]} 60. Rf3+ {[%emt 0:00:15]} Kc4 {[%emt 0:00:02]} 61. R6f5 {[%emt 0:00:06]} 1-0